Cogmind - Beta 11 @@@ ROGUE MODE // 2022.04.08 @ 15:34:15 Player: Cookie Result: Destroyed by D-53 Grenadier with Mini Grenade Launcher Performance ------------- Evolutions (0) 0 Regions Visited (2) 400 Robots Destroyed (11) 55 Value Destroyed (181) 181 Prototype IDs (0) 0 Alien Tech Used (0) 0 Bonus (26) 26 TOTAL SCORE: 662 Bonus ------- Follower Combat Kills 35 Friendly Fire -9 Cogmind --------- Core Integrity 0/250 Matter 290/300 Energy 249/250 System Corruption 0% Temperature Cool (0) Movement Rolling (95) Ox1 Location -10/Mines Parts ------- > --- POWER (1) -------- Ion Engine > --- PROPULSION (2) --- Wheel > --- UTILITY (2) ------ Medium Storage Unit Signal Interpreter > --- WEAPON (2) ------- (None) > --- INVENTORY (10) --- Light Ion Engine Improved Heat Sink Sensor Array Medium Armor Plating EM Shotgun Particle Gun Particle Gun Peak State ------------ > --- POWER ------------ Light Ion Engine > --- PROPULSION ------- Wheel Wheel > --- UTILITY ---------- Small Storage Unit Sensor Array > --- WEAPON ----------- Particle Gun Particle Gun > --- INVENTORY -------- Ion Engine Light Nuclear Core Wheel Wheel Particle Gun Particle Gun [Rating: 10] Favorites ----------- Power Light Ion Engine Engine Light Ion Engine Propulsion Wheel Wheel Wheel Utility Signal Interpreter Device Sensor Array Storage Medium Storage Unit Processor Signal Interpreter Weapon Particle Gun Energy Gun Particle Gun Ballistic Gun Assault Rifle Build | -11 -10 -10 ------- Run | Scr Mat Min Slots Evolved . | . . . Power . | . . . Propulsion . | . . . Utility . | . . . Weapon . | . . . Parts Attached 20 | 7 7 6 Power 3 | 2 . 1 Engine 3 | 2 . 1 Core . | . . . Reactor . | . . . Propulsion 8 | 2 2 4 Treads . | . . . Leg . | . . . Wheel 8 | 2 2 4 Hover . | . . . Flight . | . . . Utility 4 | 1 2 1 Device 1 | . 1 . Storage 2 | 1 . 1 Processor 1 | . 1 . Hackware . | . . . Protection . | . . . Artifact . | . . . Weapon 5 | 2 3 . Energy Gun 4 | 1 3 . Energy Cannon . | . . . Ballistic Gun 1 | 1 . . Ballistic Cannon . | . . . Launcher . | . . . Special Weapon . | . . . Impact Weapon . | . . . Slashing Weapon . | . . . Piercing Weapon . | . . . Special Melee Weapon . | . . . Unidentified Prototypes . | . . . Parts Lost 6 | . 1 5 Power . | . . . Propulsion 4 | . 1 3 Utility . | . . . Weapon 2 | . . 2 Highest Loss Streak 5 | . 1 5 To Critical Strikes . | . . . Average Slot Usage (%) 96 | . 95 97 Engine 14 | . 14 14 Wheel 26 | . 26 27 Device 4 | . 12 . Storage 14 | . 14 14 Processor 8 | . . 14 Energy Gun 22 | . 17 25 Ballistic Gun 3 | . 9 . Naked Turns . | . . . Heaviest Build 21 | 11 15 21 Greatest Support 20 | 20 20 20 Greatest Overweight (x) 1 | . 1 1 Average Overweight (x) . | . . . Largest Inventory Capacity 10 | 8 8 10 Average Capacity 8 | 6 8 9 Most Carried 10 | 3 8 10 Average Carried 6 | 1 4 8 Final Capacity 10 | 8 8 10 Final Carried 8 | 2 8 7 Class Distribution -------------------- 100% | Mutant Dominant Class ---------------- Mutant | -10/Materials Mutant | -10/Mines Resources | -11 -10 -10 ----------- Run | Scr Mat Min Matter Collected 435 | 237 148 50 Remotely . | . . . Salvage Created 243 | . 190 53 Parts 24 | . 19 5 Haulers Intercepted . | . . . Recyclers Shooed . | . . . Parts Field Recycled . | . . . Retrieved Matter . | . . . Parts Self-Destructed . | . . . Prevented . | . . . Kills | -11 -10 -10 ------- Run | Scr Mat Min Combat Hostiles Destroyed 9 | . 8 1 Guns 9 | . 8 1 Classes Destroyed 4 | . 3 1 Worker 1 | . . 1 Builder 1 | . 1 . Swarmer 6 | . 6 . Grunt 3 | . 2 1 Best Kill Streak 4 | . 4 1 Combat Bots Only 3 | . 3 1 Max Kills in Single Turn 2 | . 2 1 Gunslinging . | . . . Exploded . | . . . Melee . | . . . Uniques/NPCs Destroyed . | . . . Combat | -11 -10 -10 -------- Run | Scr Mat Min Damage Taken 801 | . 303 498 Core 251 | . 66 185 Absorbed by Shields . | . . . Core Remaining (%) 100 | 100 . . Volleys Fired 29 | . 25 4 Largest 2 | . 2 2 Hottest 110 | . 110 110 Shots Fired 58 | . 50 8 Gun 58 | . 50 8 Cannon . | . . . Launcher . | . . . Special . | . . . Kinetic 20 | . 20 . Thermal 29 | . 25 4 Explosive . | . . . Electromagnetic 9 | . 5 4 Robot Hit Streak 10 | . 10 3 Robot Miss Streak 2 | . 2 2 Penetration Max . | . . . Secondary Targets . | . . . Shots Hit Robots 36 | . 30 6 Core Hits 20 | . 14 6 Critical Kills . | . . . Critical Parts Destroyed 1 | . 1 . Critical Strikes 1 | . 1 . Destroy 1 | . 1 . Melee Attacks . | . . . Impact . | . . . Slashing . | . . . Piercing . | . . . Sneak Attacks . | . . . Combat Hostiles . | . . . Follow-up Attacks . | . . . Damage Inflicted 422 | . 346 76 Guns 422 | . 346 76 Cannons . | . . . Explosions . | . . . Melee . | . . . Ramming . | . . . Kinetic 120 | . 120 . Thermal 209 | . 178 31 Explosive . | . . . Electromagnetic 93 | . 48 45 Impact . | . . . Slashing . | . . . Piercing . | . . . Highest Corruption . | . . . Average Corruption . | . . . Corruption Purged . | . . . Corruption Blocked . | . . . Overload Shots . | . . . Overflow Damage . | . . . Projectiles . | . . . Explosions . | . . . Melee . | . . . Knockbacks . | . . . Impact . | . . . Kinetic . | . . . Secondary . | . . . Self-Inflicted Damage . | . . . Shots . | . . . Rammed . | . . . Targets Rammed . | . . . Kicked . | . . . Crushed . | . . . Highest Temperature 240 | . 240 144 Average Temperature 95 | . 105 61 Received Heat Transfer 132 | . 132 . Siege Activations . | . . . Robots Corrupted . | . . . Combat Hostiles . | . . . Parts Fried . | . . . Impact Corruptions . | . . . Robots Melted . | . . . Combat Hostiles . | . . . Parts Melted . | . . . Heat Transferred 474 | . 400 74 Parts Sabotaged . | . . . Parts Stolen . | . . . Parts Stripped . | . . . Power Chain Reactions . | . . . Missiles Intercepted . | . . . Alert | -11 -10 -10 ------- Run | Scr Mat Min Peak Influence 204 | . 204 142 Initial 79 | . . 79 Average 97 | . 90 113 Maximum Alert Level 1 | . 1 . Low Security (%) 94 | 100 84 100 Level 1 5 | . 15 . Level 2 . | . . . Level 3 . | . . . Level 4 . | . . . Level 5 . | . . . High Security . | . . . Max Security . | . . . Squads Dispatched . | . . . Investigation . | . . . Extermination . | . . . Reinforcement . | . . . Assault . | . . . Garrison . | . . . Intercept . | . . . Searches Triggered . | . . . Construction Impeded . | . . . Haulers Reinforced . | . . . Active Scanning Responses . | . . . Cargo Convoy Interrupts . | . . . Stealth | -11 -10 -10 --------- Run | Scr Mat Min Distress Signals 1 | . . 1 Communications Jammed . | . . . Distress Signals . | . . . Times Spotted 19 | . 8 11 Peak Tracking Total 7 | . 3 7 Tactical Retreats 1 | . . 1 Traps | -11 -10 -10 ------- Run | Scr Mat Min Traps Triggered . | . . . Indirectly . | . . . Trap Hack Attempts . | . . . Triggered . | . . . Disarmed . | . . . Reprogrammed . | . . . Reused . | . . . Traps Extracted . | . . . Installed . | . . . Triggered . | . . . Machines | -11 -10 -10 ---------- Run | Scr Mat Min Machines Disabled . | . . . Max in Single Turn . | . . . Machines Sabotaged . | . . . Garrisons Compromised . | . . . Overloaded Fab Kills . | . . . Hacking | -11 -10 -10 --------- Run | Scr Mat Min Machines Accessed 2 | . 2 . Terminals 2 | . 2 . Fabricators . | . . . Repair Stations . | . . . Recycling Units . | . . . Scanalyzers . | . . . Garrison Access . | . . . Total Hacks 8 | . 8 . Successful 4 | . 4 . Failed 4 | . 4 . Catastrophic 1 | . 1 . Database Lockouts . | . . . Manual 4 | . 4 . Terminals 8 | . 8 . Fabricators . | . . . Repair Stations . | . . . Recycling Units . | . . . Scanalyzers . | . . . Garrison Access . | . . . Terminal Hacks 4 | . 4 . Terminal Index 1 | . 1 . Dispatch Records 1 | . 1 . Hauler Manifests 1 | . 1 . Zone Layout 1 | . 1 . Fabricator Hacks . | . . . Repair Station Hacks . | . . . Recycling Unit Hacks . | . . . Scanalyzer . | . . . Garrison Access Hacks . | . . . Unauthorized Hacks . | . . . Terminals . | . . . Fabricators . | . . . Repair Stations . | . . . Recycling Units . | . . . Scanalyzers . | . . . Garrison Access . | . . . Data Cores Recovered . | . . . Used . | . . . Hacking Detections 2 | . 2 . Full Trace Events . | . . . Feedback Events . | . . . Feedback Blocked . | . . . Robot Schematics Acquired . | . . . Robots Built . | . . . Authchips . | . . . Time . | . . . Total Robot Build Rating . | . . . Part Schematics Acquired . | . . . Parts Built . | . . . Authchips . | . . . Time . | . . . Total Part Build Rating . | . . . Parts Repaired . | . . . Time . | . . . Parts Recycled . | . . . Recycled Matter . | . . . Retrieved Matter . | . . . Retrieved Components . | . . . Parts Scanalyzed . | . . . Part Schematics Acquired . | . . . Parts Damaged . | . . . Bothacking | -11 -10 -10 ------------ Run | Scr Mat Min Used RIF Installer . | . . . Robots Hacked . | . . . Non-combat . | . . . Combat . | . . . Robot Hacks Applied . | . . . Relay Couplers Released . | . . . Fabnet Peak Effective % . | . . . Robots Rewired . | . . . Allies Hacked . | . . . Hacks Repelled . | . . . Allies | -11 -10 -10 -------- Run | Scr Mat Min Total Allies 3 | . . 3 Largest Group 3 | . . 3 Highest-Rated Group 40 | . . 40 Highest-Rated Ally 16 | . . 16 Total Orders . | . . . Ally Attacks 7 | . . 7 Total Damage 60 | . . 60 Kills 1 | . . 1 Allies Corrupted . | . . . Allies Melted . | . . . Intel | -11 -10 -10 ------- Run | Scr Mat Min Robot Analysis Total . | . . . Derelict Logs Recovered 2 | . . 2 Drone Launches . | . . . Drone Recoveries . | . . . Exploration | -11 -10 -10 ------------- Run | Scr Mat Min Turns Passed 722 | 46 271 405 Spaces Moved 627 | 41 180 406 Core 7 | 7 . . Treads . | . . . Legs . | . . . Wheels 620 | 34 180 406 Hover . | . . . Flight . | . . . Fastest Speed 50 | 50 80 80 Average Speed 85 | 74 80 89 Slowest Speed 95 | 80 95 95 Overloaded Moves . | . . . Propulsion Burnouts . | . . . Robots Hopped . | . . . Cave-ins Triggered . | . . . Exploration Rate (%) 33 | 2 27 70 Regions Visited 2 Branch Regions 1 Pre-discovered Areas 1 | . . 1 Known Exits Taken 1 | . 1 . Unknown Exits Taken 1 | 1 . . Scrap Searched 1 | . . 1 Spaces Dug . | . . . Terrain Destroyed . | . . . Melee . | . . . Projectile . | . . . AOE . | . . . Terrain Rammed . | . . . Walls Destroyed . | . . . Machines Disabled . | . . . Actions | -11 -10 -10 --------- Run | Scr Mat Min Total 753 | 55 257 441 Wait 43 | . 27 16 Move 625 | 40 179 406 Hop . | . . . Pick Up 26 | 8 13 5 Fast Attach . | . . . Attach 13 | 6 4 3 Detach . | . . . Swap 7 | 1 3 3 Drop 10 | . 6 4 Fire 29 | . 25 4 Melee . | . . . Ram . | . . . Kick . | . . . Crush . | . . . Escape Stasis . | . . . Rewire . | . . . Trap . | . . . Miscellaneous . | . . . Route ------- -11/Scrapyard -10/Materials (discovered 2 exits: *Min x2) -10/Mines History --------- Turn | Location | Event 25 | -11/Scrapyard | Discovered new exit (range 14) 47 | -11/Scrapyard | Entered Materials 222 | -10/Materials | Discovered new exit (range 15) 289 | -10/Materials | Discovered new exit (range 16) 301 | -10/Materials | Build established: Mutant 317 | -10/Materials | Identified exit to Mines 318 | -10/Materials | Entered Mines 331 | -10/Mines | Assisted by bots powering up and referring to "LRC-V3" 399 | -10/Mines | Received a Rocket Launcher from a helpful Derelict 466 | -10/Mines | A weapon hastily lodged in a ceiling crevice suddenly fell to the ground 537 | -10/Mines | Learned location of Storage (-9) 541 | -10/Mines | Assembled infested the area 546 | -10/Mines | Assisted by a Guerilla fighting off Assembled 707 | -10/Mines | Core integrity fell below 50% 716 | -10/Mines | Core integrity fell below 20% 723 | -10/Mines | Destroyed by D-53 Grenadier with Mini Grenade Launcher Last Messages --------------- 00689_ K-01 Serf collects debris. 00690_ The unstable cave ceiling collapses. 00690_ Particle Gun destroyed. 00691_ Wheel destroyed. 00691_ Core Extractor disabled. 00691_ The unstable cave ceiling collapses. 00691_ Mercenary 1a crushed by falling debris. 00691_ Mercenary 1a destroyed. 00691_ 2 Matter crushed. 00693_ EM Shotgun destroyed. 00693_ K-01 Serf collects debris. 00695_ Trooper 1b destroyed. 00695_ Trooper 1a destroyed. 00706_ Core Extractor disabled. 00708_ K-01 Serf collects debris. 00709_ The unstable cave ceiling collapses. 00711_ Wheel destroyed. 00714_ The unstable cave ceiling collapses. 00722_ U-05 Engineer lays Concrete. 00723_ The unstable cave ceiling collapses. Map ----- +----------------------------------------------------+ | ????????## ###??????????????????# ###????????? | | ???????? ##?????????????????# ##??????????? | | ????###? # # ###???????????????## ##???????????? | | ???## ## % ?????????????????##?????????????? | | #### ## # ##????????????????????????????????? | | #????????????????????????????????? | | #### #????????????????????????????????? | | ?? # ##???????????????????????????????? | | ?# * # #???????????????????????????????? | | ? %[ = # #???????????????????????????????? | | # % ! #????????????????????????????????? | | ! #???? ????????????????????????? | | ###???? #??????????????????????? | | " #???# #?????? ??????????????? | | %##### ?????? ??????????????? | | % #?????# #??????????????? | | """ # #?????# ???????????????? | | """ ### ### #?????? #???????????????? | | ###=### #?????? ##??????????????? | | """[%= %*% ##????# ##?????????????? | | "" """ *= ###?# #?????????????? | | "" """ ##### k## ####??????????? | | # u % #??????????? | | "" " # #?????????????? | | "" d #?????????????? | | "" " d @ #?????????????? | | # #### #??????????????? | | "" # #?????????????????????? | | "" ## #?????????????????????? | | "" ## #????????????????????? | | # ###### #???????????????????? | | "" """ ###????# #??????????????????? | | "" """ #??????## #?????????????????? | | "" """ #???????##### #????????????????? | | #???????????## #????????????????? | | #########????????????##### ##????????????????? | | ??????????????????????????######?????????????????? | | ?????????????????????????????????????????????????? | | | | | | | | | | | | | | | | | | | | | | | | | +----------------------------------------------------+ Best States ------------- Heat Dissipation 25 Energy Generation 10 Energy Capacity 250 Matter Stores 300 Matter Capacity 300 Sight Range 16 Robot Scan Range 14 Terrain Scan Density 10 Evasion (%) 44 Item Schematics ----------------- None Robot Schematics ------------------ None Fabricated ------------ Nothing Alien Tech Used ----------------- None Achievements -------------- None Challenges ------------ None Game ------ Seed ColdNeutrinoMembrane Manual? 0 Play Time 00:10:06 Cumulative 59.6 hours Start 2022.04.08 @ 15:23:16 End 2022.04.08 @ 15:34:15 Sessions 1 Manual Loads 0 Difficulty Rogue Special Mode None Game No. 101 Rogue 101 Adventurer 0 Explorer 0 Win Type - Total 1 Types 1/0/0/0/0/0/0/0/0 Lore% 37 Gallery% 35 Achievement% 36 Wizard Run 0 Options --------- ASCII 0 Keyboard 0 Movement Mouse Keybinds 0 Fullscreen 1 Font 18/SmallcapsGlow Map View 76x50 Tactical HUD 1 Map Filters NONE Filters NONE Steam 1 RUN: f30c7be5-3c2f-4143-94e5-c84975b2ccb7